fUSD/lending_fUSD_20250324
["ID","MTS","AMOUNT","RATE_DAILY","PERIOD"]
[356604533,1742792635082,-219.99377727,0.0001199,2]
[356604534,1742792635109,-300.0,0.00011998,2]
[356604535,1742792635134,-2524.5555885,0.00011999,2]
[356604536,1742792635159,-5583.4044873,0.00011999,2]
[356604537,1742792635184,-500.0,0.00011999,2]
[356604538,1742792635211,-500.0,0.00011999,2]
[356604539,1742792635235,-500.0,0.00011999,2]
[356604540,1742792635263,-500.0,0.00011999,2]
[356604541,1742792635289,-500.0,0.00011999,2]
[356604542,1742792635316,-500.0,0.00011999,2]
[356604543,1742792635344,-620.89334696,0.00011999,2]
[356604544,1742792635369,-500.0,0.00011999,2]
[356604545,1742792635395,-500.0,0.00011999,2]
[356604546,1742792635420,-500.0,0.00011999,2]
[356604547,1742792635449,-51383.67851366,0.00012,2]
[356604548,1742792642455,-610.64758116,0.00012,2]
[356604561,1742792902590,634.04,0.00010241,2]
[356604566,1742793037530,-323.5079557,0.0001164,2]
[356604567,1742793037541,-150.0,0.0001177,2]
[356604568,1742793037554,-188.34540049,0.000119,2]
[356604569,1742793037563,-12.81523693,0.00011915,2]
[356604571,1742793037574,-137.18476307,0.00011915,2]
[356604572,1742793037583,-404.87713604,0.00011999,2]
[356604573,1742793037714,-610.12286396,0.00011999,2]
[356604574,1742793037723,-3942.0,0.00011999,2]
[356604575,1742793037732,-209.316,0.00011999,2]
[356604576,1742793037741,-8612.19234292,0.00012,2]
[356604577,1742793037752,-1887.54303387,0.00012,2]
[356604578,1742793037770,-1762.10743291,0.00012,2]
[356604579,1742793037826,-849.02319621,0.00012,2]
[356604590,1742793043342,-385.57208775,0.00011999,2]
[356604592,1742793043354,-713.57891225,0.00011999,2]
[356604594,1742793043363,-1051.54031855,0.00012,2]
[356604601,1742793043576,-1250.46736825,0.00012,2]
[356604602,1742793043588,-2150.11756893,0.00012,2]
[356604605,1742793044944,-8710.14999999,0.00012,2]
[356604606,1742793045167,-8771.64753626,0.00012,2]
[356604607,1742793045178,-4058.2309764,0.00012,2]
[356604609,1742793045657,-2905.13824306,0.00012,2]
[356604610,1742793241629,350.0,0.00011705,3]
[356604618,1742794072782,534.60154178,0.0001,2]
[356604619,1742794076615,5732.96845822,0.0001,2]
[356604620,1742794076645,16172.19061248,0.0001,2]
[356604632,1742794231824,-250.0,0.00011,2]
[356604633,1742794231834,-19.4,0.00011171,2]
[356604634,1742794231947,-1604.94,0.00011171,2]
[356604635,1742794231957,-176.55255507,0.00011212,2]
[356604636,1742794231966,-870.34,0.00011259,2]
[356604637,1742794231976,-929.52702902,0.00011312,2]
[356604638,1742794232008,-70.47297098,0.00011312,2]
[356604639,1742794232017,-231.08,0.00011312,2]
[356604640,1742794232026,-24040.21,0.00011379,2]
[356604641,1742794232035,-178.56,0.00011572,2]
[356604642,1742794232045,-280.8846785,0.0001164,2]
[356604643,1742794232054,-1695.10860432,0.000119,2]
[356604644,1742794232063,-250.0,0.00011916,2]
[356604645,1742794232072,-3783.51081252,0.0001196,2]
[356604646,1742794232081,-500.0,0.00011969,2]
[356604647,1742794232090,-500.0,0.00011969,2]
[356604648,1742794232100,-193.44505633,0.00011969,2]
[356604649,1742794232108,-18799.40190357,0.0001197,2]
[356604650,1742794232124,-302.0,0.0001197,2]
[356604651,1742794232135,-701.16069017,0.0001197,2]
[356604664,1742794237822,-4097.43740626,0.0001197,2]
[356604665,1742794237832,-428.7043517,0.00011995,2]
[356604666,1742794237841,-1427.163,0.00011999,2]
[356604667,1742794237850,-579.315,0.00011999,2]
[356604668,1742794237859,-1273.0,0.00011999,2]
[356604669,1742794237869,-788.0,0.00011999,2]
[356604670,1742794237878,-1446.675,0.00011999,2]
[356604671,1742794237887,-929.741,0.00011999,2]
[356604672,1742794237896,-4086.0,0.00011999,2]
[356604673,1742794237905,-610.726,0.00011999,2]
[356604674,1742794237920,-152.788,0.00011999,2]
[356604675,1742794237934,-151.0,0.00011999,2]
[356604676,1742794237943,-1281.0,0.00011999,2]
[356604677,1742794237953,-181.49418268,0.00011999,2]
[356604678,1742794237962,-257.64467381,0.00011999,2]
[356604679,1742794237971,-297845.57966136,0.00012,2]
[356604683,1742794240229,-1978.879819,0.00012,2]
[356604684,1742794240401,-515.40543033,0.00012,2]
[356604686,1742794240463,-88130.09973505,0.00012,2]
[356604688,1742794240473,-500.0,0.00012,2]
[356604690,1742794240483,-500.0,0.00012,2]
[356604692,1742794240492,-500.0,0.00012,2]
[356604693,1742794240501,-500.0,0.00012,2]
[356604695,1742794240510,-500.0,0.00012,2]
[356604698,1742794240519,-500.0,0.00012,2]
[356604700,1742794240528,-500.0,0.00012,2]
[356604702,1742794240538,-500.0,0.00012,2]
[356604704,1742794240547,-500.0,0.00012,2]
[356604705,1742794240556,-500.0,0.00012,2]
[356604706,1742794240566,-500.0,0.00012,2]
[356604707,1742794240575,-500.0,0.00012,2]
[356604709,1742794240584,-500.0,0.00012,2]
[356604710,1742794240594,-500.0,0.00012,2]
[356604711,1742794240603,-500.0,0.00012,2]
[356604712,1742794240611,-500.0,0.00012,2]
[356604713,1742794240620,-500.0,0.00012,2]
[356604714,1742794240629,-500.0,0.00012,2]
[356604715,1742794240638,-500.0,0.00012,2]
[356604717,1742794240647,-500.0,0.00012,2]
[356604718,1742794240657,-500.0,0.00012,2]
[356604719,1742794240665,-500.0,0.00012,2]
[356604720,1742794240675,-500.0,0.00012,2]
[356604721,1742794240684,-500.0,0.00012,2]
[356604722,1742794240693,-500.0,0.00012,2]
[356604723,1742794240703,-500.0,0.00012,2]
[356604724,1742794240712,-500.0,0.00012,2]
[356604725,1742794240721,-500.0,0.00012,2]
[356604726,1742794240731,-500.0,0.00012,2]
[356604727,1742794240744,-500.0,0.00012,2]
[356604728,1742794240753,-500.0,0.00012,2]
[356604729,1742794240761,-500.0,0.00012,2]
[356604730,1742794240772,-500.0,0.00012,2]
[356604731,1742794240783,-903.0,0.00012,2]
[356604732,1742794240792,-500.0,0.00012,2]
[356604733,1742794240801,-500.0,0.00012,2]
[356604734,1742794240811,-500.0,0.00012,2]
[356604735,1742794240820,-583.0,0.00012,2]
[356604736,1742794240829,-2554128.22343224,0.00012,2]
[356604737,1742794240841,-1824.61916736,0.00012,2]
[356604758,1742794243194,-642.0,0.00011999,2]
[356604759,1742794243204,-42909.69524505,0.00012,2]
[356604792,1742794245966,-2732.22360964,0.00012,2]
[356604800,1742794246028,-2053.4988,0.00012,2]
[356604823,1742794653436,1016.0,0.00031844,30]
[356604824,1742794846721,861.0,0.0003184,30]
[356604825,1742794964665,500.0,0.0003184,30]
[356604826,1742794989227,520.82,0.0003184,30]
[356604827,1742795010453,500.0,0.0003184,30]
[356604828,1742795021181,500.0,0.0003184,30]
[356604829,1742795066586,-168.48,0.00010896,2]
[356604830,1742795140394,500.0,0.0003184,120]
[356604831,1742795150303,-166.23,0.00010884,2]
[356604832,1742795172121,500.0,0.0003184,120]
[356604833,1742795177247,500.0,0.0003184,120]
[356604834,1742795186896,349.19,0.0003184,120]
[356604844,1742795329650,435.17,0.00010804,2]
[356604845,1742795404180,166.66,0.00010756,2]
[356604893,1742795437895,-202.56087197,0.00010884,2]
[356604894,1742795437906,-321.73412803,0.00010896,2]
[356604895,1742795437917,-361.72587197,0.00010896,2]
[356604896,1742795437927,-858.32,0.00010974,2]
[356604897,1742795437936,-1000.0,0.00010984,2]
[356604898,1742795437945,-250.0,0.00011,2]
[356604899,1742795437954,-111.67383121,0.00011016,2]
[356604900,1742795438004,-90.88704074,0.00011016,2]
[356604901,1742795438013,-213.89645926,0.00011116,2]
[356604916,1742795440163,-0.01871216,0.00011116,2]
[356604917,1742795440174,-1286.08482858,0.00011116,2]
[356604918,1742795440183,-326.43,0.00011135,2]
[356604919,1742795440194,-198.51,0.00011169,2]
[356604920,1742795440203,-652.86,0.00011198,2]
[356604921,1742795440212,-153.09,0.00011396,2]
[356604922,1742795440222,-153.09,0.00011447,2]
[356604923,1742795440231,-153.09,0.00011498,2]
[356604924,1742795440241,-153.09,0.00011548,2]
[356604925,1742795440251,-412.53076993,0.00011588,2]
[356604926,1742795440260,-153.09,0.00011599,2]
[356604927,1742795440269,-410.1714553,0.0001164,2]
[356604928,1742795440280,-153.09,0.0001165,2]
[356604929,1742795440289,-1794.87294619,0.00011651,2]
[356604930,1742795440316,-3907.64969985,0.00011651,2]
[356604931,1742795440489,-5692.59900203,0.00011651,2]
[356604932,1742795440498,-1311.79,0.000117,2]
[356604933,1742795440508,-153.09,0.000117,2]
[356604934,1742795440517,-153.09,0.00011751,2]
[356604936,1742795440527,-153.09,0.00011802,2]
[356604937,1742795440536,-153.09,0.00011852,2]
[356604938,1742795440546,-848.706,0.00011899,2]
[356604939,1742795440555,-150.0,0.00011899,2]
[356604940,1742795440565,-411.97156954,0.00011899,2]
[356604941,1742795440574,-19820.5318,0.000119,2]
[356604942,1742795440583,-2500.0,0.000119,2]
[356604943,1742795440593,-939.46206958,0.00011962,2]
[356604945,1742795440602,-150.0,0.00011972,2]
[356604946,1742795440611,-150.0,0.00011972,2]
[356604947,1742795440621,-150.0,0.00011972,2]
[356604948,1742795440630,-2037.0,0.00011999,2]
[356604949,1742795440640,-642.0,0.00011999,2]
[356604950,1742795440649,-1281.0,0.00011999,2]
[356604951,1742795440659,-1421.0,0.00011999,2]
[356604952,1742795440670,-1273.0,0.00011999,2]
[356604953,1742795440679,-788.0,0.00011999,2]
[356604954,1742795440689,-907.0,0.00011999,2]
[356604955,1742795440699,-3679.539,0.00011999,2]
[356604956,1742795440708,-3942.0,0.00011999,2]
[356604957,1742795440717,-277.308,0.00011999,2]
[356604958,1742795440727,-151.0,0.00011999,2]
[356604960,1742795440736,-1015.0,0.00011999,2]
[356604962,1742795440745,-180.35127167,0.00011999,2]
[356604964,1742795440754,-642.0,0.00012,2]
[356604966,1742795440763,-2620144.27691878,0.00012,2]
[356604973,1742795443044,-233.0,0.00011999,2]
[356604974,1742795443053,-11743.00602184,0.00012,2]
[356604975,1742795443268,-4692.42263209,0.00012,2]
[356604989,1742795446279,-177.222,0.00011999,2]
[356604990,1742795446290,-17273.8104,0.00012,2]
[356604993,1742795555032,671.05,0.00010788,2]
[356604994,1742795978912,-2350.0,0.000209,30]
[356604995,1742796052779,287.76209,0.00012,6]
[356604996,1742796099551,157.89503,0.00012,6]
[356604997,1742796142312,239.80174,0.00012,6]
[356604998,1742796211794,157.89503,0.00012,6]
[356604999,1742796254958,199.83478,0.00012,6]
[356605000,1742796297516,157.89504079,0.00012,6]
[356605005,1742796327374,2011.0,8.1e-05,2]
[356605006,1742796340310,166.52899,0.00012,6]
[356605028,1742796582061,150.0,0.00011171,7]
[356605037,1742796632369,-150.0,0.0001117,2]
[356605038,1742796632379,-23900.0,0.00011171,2]
[356605039,1742796632389,-1000.0,0.00011171,2]
[356605040,1742796632399,-184.86,0.00011171,2]
[356605041,1742796632408,-637.49,0.00011172,2]
[356605042,1742796632418,-151.0,0.0001161,2]
[356605043,1742796632427,-1015.0,0.0001161,2]
[356605044,1742796632437,-3942.0,0.0001161,2]
[356605045,1742796632446,-414.8949456,0.0001164,2]
[356605046,1742796632456,-500.0,0.00011781,2]
[356605047,1742796632466,-150.0,0.0001182,2]
[356605048,1742796632478,-14213.65036434,0.000119,2]
[356605049,1742796632488,-15754.77325679,0.000119,2]
[356605050,1742796632497,-150.0,0.00011956,2]
[356605051,1742796632507,-150.0,0.00011999,2]
[356605052,1742796632517,-150.0,0.00011999,2]
[356605053,1742796632526,-163.224,0.00011999,2]
[356605054,1742796632536,-257.165,0.00011999,2]
[356605055,1742796632545,-214.526,0.00011999,2]
[356605056,1742796632555,-150.47,0.00011999,2]
[356605057,1742796632565,-150.226,0.00011999,2]
[356605058,1742796632574,-181.025,0.00011999,2]
[356605059,1742796632583,-171.348,0.00011999,2]
[356605060,1742796632592,-176.164,0.00011999,2]
[356605061,1742796632602,-1040.902,0.00011999,2]
[356605062,1742796632611,-642.0,0.00011999,2]
[356605063,1742796632620,-2037.0,0.00011999,2]
[356605064,1742796632629,-876.737,0.00011999,2]
[356605065,1742796632639,-298.088,0.00011999,2]
[356605066,1742796632649,-548864.67317394,0.00012,2]
[356605067,1742796632658,-198.51,0.00012091,2]
[356605068,1742796632667,-159.66,0.00012284,2]
[356605069,1742796632676,-159.66,0.00012322,2]
[356605070,1742796632686,-159.66,0.0001236,2]
[356605071,1742796632695,-159.66,0.00012397,2]
[356605072,1742796632704,-217.58,0.000124,2]
[356605073,1742796632713,-500.0,0.00012422,2]
[356605074,1742796632723,-500.0,0.00012422,2]
[356605075,1742796632733,-500.0,0.00012422,2]
[356605076,1742796632743,-500.0,0.00012422,2]
[356605077,1742796632751,-500.0,0.00012422,2]
[356605078,1742796632760,-500.0,0.00012422,2]
[356605079,1742796632769,-500.0,0.00012422,2]
[356605080,1742796632778,-500.0,0.00012422,2]
[356605081,1742796632788,-500.0,0.00012422,2]
[356605082,1742796632796,-500.0,0.00012422,2]
[356605098,1742796632929,-500.0,0.00012422,2]
[356605100,1742796632941,-500.0,0.00012422,2]
[356605101,1742796632950,-500.0,0.00012422,2]
[356605102,1742796632959,-500.0,0.00012422,2]
[356605103,1742796632968,-500.0,0.00012422,2]
[356605104,1742796632978,-500.0,0.00012422,2]
[356605105,1742796632987,-500.0,0.00012422,2]
[356605106,1742796632996,-500.0,0.00012422,2]
[356605107,1742796633006,-500.0,0.00012422,2]
[356605108,1742796633015,-500.0,0.00012422,2]
[356605109,1742796633024,-500.0,0.00012422,2]
[356605110,1742796633033,-500.0,0.00012422,2]
[356605111,1742796633043,-500.0,0.00012422,2]
[356605112,1742796633052,-500.0,0.00012422,2]
[356605113,1742796633061,-500.0,0.00012422,2]
[356605114,1742796633070,-500.0,0.00012422,2]
[356605115,1742796633080,-500.0,0.00012422,2]
[356605116,1742796633089,-500.0,0.00012422,2]
[356605117,1742796633098,-500.0,0.00012422,2]
[356605118,1742796633107,-500.0,0.00012422,2]
[356605119,1742796633117,-500.0,0.00012422,2]
[356605120,1742796633126,-500.0,0.00012422,2]
[356605121,1742796633135,-500.0,0.00012422,2]
[356605122,1742796633146,-903.0,0.00012422,2]
[356605123,1742796633156,-500.0,0.00012422,2]
[356605124,1742796633165,-500.0,0.00012422,2]
[356605125,1742796633175,-500.0,0.00012422,2]
[356605126,1742796633184,-583.0,0.00012422,2]
[356605127,1742796633194,-500.0,0.00012422,2]
[356605128,1742796633203,-500.0,0.00012422,2]
[356605129,1742796633213,-500.0,0.00012422,2]
[356605130,1742796633222,-500.0,0.00012422,2]
[356605131,1742796633232,-500.0,0.00012422,2]
[356605132,1742796633242,-500.0,0.00012422,2]
[356605133,1742796633252,-500.0,0.00012422,2]
[356605134,1742796633262,-500.0,0.00012422,2]
[356605135,1742796633271,-500.0,0.00012422,2]
[356605136,1742796633281,-500.0,0.00012422,2]
[356605137,1742796633291,-500.0,0.00012422,2]
[356605138,1742796633300,-500.0,0.00012422,2]
[356605139,1742796633310,-500.0,0.00012422,2]
[356605140,1742796633320,-500.0,0.00012422,2]
[356605141,1742796633329,-500.0,0.00012422,2]
[356605142,1742796633339,-500.0,0.00012422,2]
[356605143,1742796633348,-500.0,0.00012422,2]
[356605144,1742796633358,-500.0,0.00012422,2]
[356605145,1742796633368,-500.0,0.00012422,2]
[356605146,1742796633378,-500.0,0.00012422,2]
[356605147,1742796633389,-500.0,0.00012422,2]
[356605148,1742796633399,-500.0,0.00012422,2]
[356605149,1742796633409,-500.0,0.00012422,2]
[356605150,1742796633419,-500.0,0.00012422,2]
[356605151,1742796633429,-500.0,0.00012422,2]
[356605152,1742796633439,-500.0,0.00012422,2]
[356605153,1742796633449,-500.0,0.00012422,2]
[356605154,1742796633459,-500.0,0.00012422,2]
[356605155,1742796633468,-500.0,0.00012422,2]
[356605156,1742796633481,-500.0,0.00012422,2]
[356605157,1742796633492,-500.0,0.00012422,2]
[356605158,1742796633502,-500.0,0.00012422,2]
[356605159,1742796633511,-500.0,0.00012422,2]
[356605160,1742796633522,-500.0,0.00012422,2]
[356605161,1742796633531,-500.0,0.00012422,2]
[356605162,1742796633541,-500.0,0.00012422,2]
[356605163,1742796633552,-500.0,0.00012422,2]
[356605164,1742796633563,-500.0,0.00012422,2]
[356605165,1742796633572,-500.0,0.00012422,2]
[356605166,1742796633582,-500.0,0.00012422,2]
[356605167,1742796633591,-500.0,0.00012422,2]
[356605168,1742796633601,-500.0,0.00012422,2]
[356605169,1742796633611,-500.0,0.00012422,2]
[356605170,1742796633620,-500.0,0.00012422,2]
[356605171,1742796633629,-500.0,0.00012422,2]
[356605172,1742796633639,-500.0,0.00012422,2]
[356605173,1742796633649,-500.0,0.00012422,2]
[356605174,1742796633660,-500.0,0.00012422,2]
[356605175,1742796633670,-500.0,0.00012422,2]
[356605176,1742796633679,-500.0,0.00012422,2]
[356605177,1742796633688,-500.0,0.00012422,2]
[356605178,1742796633697,-500.0,0.00012422,2]
[356605179,1742796633707,-500.0,0.00012422,2]
[356605180,1742796633716,-500.0,0.00012422,2]
[356605181,1742796633725,-500.0,0.00012422,2]
[356605182,1742796633735,-500.0,0.00012422,2]
[356605183,1742796633744,-500.0,0.00012422,2]
[356605184,1742796633753,-500.0,0.00012422,2]
[356605185,1742796633762,-500.0,0.00012422,2]
[356605186,1742796633771,-500.0,0.00012422,2]
[356605187,1742796633780,-500.0,0.00012422,2]
[356605188,1742796633789,-500.0,0.00012422,2]
[356605189,1742796633799,-500.0,0.00012422,2]
[356605190,1742796633809,-500.0,0.00012422,2]
[356605191,1742796633818,-500.0,0.00012422,2]
[356605192,1742796633827,-500.0,0.00012422,2]
[356605193,1742796633836,-500.0,0.00012422,2]
[356605194,1742796633845,-500.0,0.00012422,2]
[356605195,1742796633854,-500.0,0.00012422,2]
[356605196,1742796633863,-500.0,0.00012422,2]
[356605197,1742796633873,-500.0,0.00012422,2]
[356605198,1742796633882,-500.0,0.00012422,2]
[356605199,1742796633892,-500.0,0.00012422,2]
[356605200,1742796633901,-500.0,0.00012422,2]
[356605201,1742796633911,-500.0,0.00012422,2]
[356605202,1742796633920,-500.0,0.00012422,2]
[356605203,1742796633929,-500.0,0.00012422,2]
[356605204,1742796633938,-500.0,0.00012422,2]
[356605205,1742796633948,-500.0,0.00012422,2]
[356605206,1742796633957,-500.0,0.00012422,2]
[356605207,1742796633967,-935.0,0.00012422,2]
[356605208,1742796633976,-159.66,0.00012435,2]
[356605209,1742796633986,-159.66,0.00012473,2]
[356605210,1742796633996,-159.66,0.00012511,2]
[356605211,1742796634005,-159.66,0.00012549,2]
[356605212,1742796634015,-1000.0,0.00012567,2]
[356605213,1742796634025,-184.86,0.00012567,2]
[356605214,1742796634035,-159.66,0.00012586,2]
[356605215,1742796634046,-166.23,0.00012615,2]
[356605216,1742796634055,-159.66,0.00012624,2]
[356605217,1742796634065,-150.0,0.00012655,2]
[356605218,1742796634075,-159.66,0.00012662,2]
[356605219,1742796634084,-159.66,0.000127,2]
[356605220,1742796634093,-666.6,0.00012729,2]
[356605221,1742796634102,-159.66,0.00012738,2]
[356605222,1742796634111,-157.39,0.00012765,2]
[356605223,1742796634120,-159.66,0.00012775,2]
[356605224,1742796634130,-350.0,0.00012804,3]
[356605225,1742796634141,-350.0,0.00012804,3]
[356605226,1742796634151,-350.0,0.00012804,3]
[356605227,1742796634160,-150.0,0.00012804,2]
[356605228,1742796634170,-1885.79651547,0.000129,2]
[356605229,1742796634180,-300.0,0.00013,2]
[356605230,1742796634191,-37852.4,0.00013,2]
[356605231,1742796634201,-10655.8,0.00013,2]
[356605232,1742796634211,-198.51,0.00013012,2]
[356605233,1742796634221,-518.77,0.00013107,2]
[356605234,1742796634231,-200.43,0.00013121,2]
[356605235,1742796634241,-518.77,0.00013135,2]
[356605236,1742796634250,-172.04,0.00013148,2]
[356605237,1742796634259,-250.0,0.00013148,2]
[356605238,1742796634269,-518.77,0.00013163,2]
[356605239,1742796634278,-518.77,0.0001319,2]
[356605240,1742796634288,-518.77,0.00013218,2]
[356605241,1742796634297,-518.77,0.00013245,2]
[356605242,1742796634306,-518.77,0.00013273,2]
[356605243,1742796634316,-518.77,0.00013301,2]
[356605244,1742796634326,-518.77,0.00013328,2]
[356605245,1742796634335,-518.77,0.00013356,2]
[356605246,1742796634345,-518.77,0.00013383,2]
[356605247,1742796634355,-518.77,0.00013411,2]
[356605248,1742796634365,-637.49,0.00013436,2]
[356605249,1742796634374,-518.77,0.00013439,2]
[356605250,1742796634383,-518.77,0.00013466,2]
[356605251,1742796634394,-178.56,0.00013482,2]
[356605252,1742796634403,-518.77,0.00013494,2]
[356605253,1742796634413,-518.77,0.00013521,2]
[356605254,1742796634423,-518.77,0.00013549,2]
[356605255,1742796634433,-518.77,0.00013576,2]
[356605256,1742796634442,-518.77,0.00013604,2]
[356605257,1742796634452,-518.77,0.00013632,2]
[356605258,1742796634461,-153.0,0.00013699,2]
[356605259,1742796634470,-153.0,0.00013699,2]
[356605260,1742796634481,-153.0,0.00013699,2]
[356605261,1742796634492,-153.0,0.00013699,2]
[356605262,1742796634502,-153.0,0.00013699,2]
[356605263,1742796634512,-153.0,0.00013699,2]
[356605264,1742796634522,-153.0,0.00013699,2]
[356605265,1742796634532,-153.0,0.00013699,2]
[356605266,1742796634541,-153.0,0.00013699,2]
[356605267,1742796634550,-153.0,0.00013699,2]
[356605268,1742796634559,-153.0,0.00013699,2]
[356605269,1742796634568,-153.0,0.00013699,2]
[356605270,1742796634578,-153.0,0.00013699,2]
[356605271,1742796634587,-153.0,0.00013699,2]
[356605272,1742796634596,-153.0,0.00013699,2]
[356605273,1742796634605,-200.0,0.00013699,2]
[356605274,1742796634614,-500.0,0.00013699,2]
[356605275,1742796634624,-440.26309762,0.00013699,2]
[356605276,1742796634633,-485.8366195,0.000137,2]
[356605277,1742796634644,-1000.0,0.00013964,2]
[356605278,1742796634654,-184.86,0.00013964,2]
[356605279,1742796634663,-151.0,0.0001461,2]
[356605280,1742796634673,-162.236,0.0001461,2]
[356605281,1742796634682,-2071.379,0.0001461,2]
[356605282,1742796634691,-150.0,0.00014999,2]
[356605283,1742796634701,-150.0,0.00014999,2]
[356605284,1742796634710,-150.0,0.00014999,2]
[356605285,1742796634719,-150.0,0.00014999,2]
[356605286,1742796634728,-150.0,0.00014999,2]
[356605287,1742796634737,-642.0,0.00014999,2]
[356605288,1742796634746,-2037.0,0.00014999,2]
[356605289,1742796634755,-350.0,0.00015,2]
[356605290,1742796634764,-300.0,0.00015068,2]
[356605291,1742796634773,-1000.0,0.0001536,2]
[356605292,1742796634782,-184.86,0.0001536,2]
[356605293,1742796634792,-637.49,0.000157,2]
[356605294,1742796634801,-500.0,0.00015973,2]
[356605295,1742796634811,-615.44115301,0.00015973,2]
[356605296,1742796634820,-160.97466765,0.00015973,2]
[356605297,1742796634829,-501.20272927,0.00015973,2]
[356605298,1742796634838,-500.0,0.00015973,2]
[356605299,1742796634847,-37852.4,0.00016,2]
[356605300,1742796634857,-10655.8,0.00016,2]
[356605301,1742796634866,-8391.33632667,0.00016,2]
[356605302,1742796634875,-166.66,0.00016135,2]
[356605303,1742796634884,-300.0,0.00016438,2]
[356605304,1742796634895,-166.6,0.00016712,2]
[356605305,1742796634904,-1000.0,0.00016756,2]
[356605306,1742796634913,-184.86,0.00016756,2]
[356605307,1742796634922,-9999.99,0.00016922,2]
[356605308,1742796634931,-351.79,0.00016922,2]
[356605309,1742796634940,-150.99,0.00016922,2]
[356605310,1742796634950,-999.99,0.00016922,2]
[356605311,1742796634960,-3971.73,0.00016922,2]
[356605312,1742796634970,-400.0,0.00017,2]
[356605313,1742796634979,-2175.32,0.000171,2]
[356605314,1742796634988,-1924.28,0.000171,2]
[356605315,1742796634998,-217.58,0.0001736,2]
[356605316,1742796635008,-151.0,0.0001761,2]
[356605317,1742796635017,-600.0,0.00017808,2]
[356605318,1742796635027,-637.49,0.00017964,2]
[356605319,1742796635037,-150.0,0.00017999,2]
[356605320,1742796635046,-150.0,0.00017999,2]
[356605321,1742796635056,-642.0,0.00017999,2]
[356605322,1742796635065,-2037.0,0.00017999,2]
[356605323,1742796635074,-190.32527829,0.00018,2]
[356605324,1742796635084,-200.0,0.00018082,2]
[356605325,1742796635093,-157.66,0.000186,2]
[356605326,1742796635102,-51202.90164803,0.00019,2]
[356605327,1742796635112,-969.91,0.00019,2]
[356605328,1742796635121,-52809.61202993,0.00019,2]
[356605329,1742796635131,-448.10299587,0.00019,2]
[356605330,1742796635141,-1346.34874807,0.00019,2]
[356605331,1742796635150,-450.0,0.00019,2]
[356605332,1742796635160,-150.0,0.000192,2]
[356605333,1742796635170,-1042.09043237,0.00019399,5]
[356605334,1742796635310,185.18518,0.00012,6]
[356605356,1742796638295,-1104.7174009,0.00012,2]
[356605365,1742796640473,-137.48575339,0.00012,2]
[356605366,1742796640695,-199.09684571,0.00012,2]
[356605367,1742796640705,-150.99,0.00016922,2]
[356605368,1742796640715,-185.18518,0.00017,6]
[356605369,1742796640724,-957.90956763,0.00019399,5]
[356605370,1742796640733,-1008.0,0.00019399,5]
[356605371,1742796640743,-658.30183365,0.000194,2]